[Event "III Menorca Open-A 2024"]
[Site "Ciutadella Menorca"]
[Date "2024.04.06"]
[Round "8.19"]
[White "Arizmendi Martinez, Julen Luis"]
[Black "Tarhan, Adar"]
[Result "1/2-1/2"]
[ECO "C78"]
[WhiteElo "2521"]
[BlackElo "2446"]
[Annotator "RC"]
[PlyCount "225"]
[EventDate "2024.04.02"]
[EventType "swiss"]
[EventCountry "ESP"]
[SourceTitle "playchess.com"]
[Source "ChessBase"]
[SourceQuality "1"]
[TimeControl "5400+30"]

1. e4 {[%emt 0:00:58]} e5 {[%emt 0:00:16]} 2. Nf3 {[%emt 0:00:08]} Nc6 {[%emt 0:00:04]} 3. Bb5 {[%emt 0:00:12]} a6 {[%emt 0:00:06]} 4. Ba4 {[%emt 0:00:07]} Nf6 {[%emt 0:00:04]} 5. O-O {[%emt 0:00:11]} b5 {[%emt 0:00:55]} 6. Bb3 {[%emt 0:00:07]} Bb7 {[%emt 0:00:23]} 7. d3 {[%emt 0:03:07]} Bc5 {[%emt 0:00:17]} 8. a4 {[%emt 0:05:23]} O-O {[%emt 0:04:37]} 9. Bg5 {[%emt 0:02:07]} h6 {[%emt 0:01:05]} 10. Bh4 {[%emt 0:04:25]} g5 {[%emt 0:02:30]} 11. axb5 {[%emt 0:02:56]} axb5 {[%emt 0:00:31]} 12. Rxa8 {[%emt 0:00:09]} Bxa8 {[%emt 0:03:26]} 13. Bg3 {[%emt 0:00:27]} d6 {[%emt 0:00:43]} 14. Nc3 {[%emt 0:04:17]} Na5 {[%emt 0:04:28]} 15. Ba2 {[%emt 0:22:07]} b4 {[%emt 0:05:54]} 16. Ne2 {[%emt 0:04:16]} b3 {[%emt 0:01:56]} 17. Bb1 {[%emt 0:02:48]} bxc2 {[%emt 0:00:20]} 18. Bxc2 {[%emt 0:03:01]} Nc6 {[%emt 0:00:56]} 19. Ba4 {[%emt 0:12:21]} Ne7 {[%emt 0:00:35]} 20. Qc1 {[%emt 0:12:13]} Ng6 {[%emt 0:05:55]} 21. Nxe5 {[%emt 0:10:30]} dxe5 {[%emt 0:00:18]} 22. Qxc5 {[%emt 0:00:02]} Qxd3 {[%emt 0:00:07]} 23. Bb5 {[%emt 0:06:43]} Qxe4 {[%emt 0:00:13]} 24. f3 {[%emt 0:00:03]} Qd5 {[%emt 0:00:17]} 25. Qxd5 {[%emt 0:01:15]} Nxd5 {[%emt 0:01:11]} 26. Ra1 {[%emt 0:00:12]} Rb8 {[%emt 0:03:03]} 27. Bd3 {[%emt 0:00:19]} Nde7 {[%emt 0:00:29]} 28. Ra7 {[%emt 0:01:38]} Bd5 {[%emt 0:00:48]} 29. Rxc7 {[%emt 0:02:14]} Rxb2 {[%emt 0:00:09]} 30. Nc3 {[%emt 0:00:22]} Be6 {[%emt 0:01:34]} 31. Bxg6 {[%emt 0:00:36]} Nxg6 {[%emt 0:00:07]} 32. Ne4 {[%emt 0:00:10]} Rb5 {[%emt 0:04:28]} 33. h3 {[%emt 0:01:01]} Kg7 {[%emt 0:00:27]} 34. Kh2 {[%emt 0:00:31]} Rd5 {[%emt 0:01:04]} 35. Rc5 {[%emt 0:00:27]} Rxc5 {[%emt 0:00:31]} 36. Nxc5 {[%emt 0:00:01]} Kf6 {[%emt 0:00:35]} 37. Ne4+ {[%emt 0:00:11]} Ke7 {[%emt 0:00:05]} 38. Be1 {[%emt 0:00:19]} Bf5 {[%emt 0:00:55]} 39. Bb4+ {[%emt 0:00:35]} Ke6 {[%emt 0:00:07]} 40. g4 {[%emt 0:01:10]} Bxe4 {[%emt 0:00:09]} 41. fxe4 {[%emt 0:00:01]} Nf4 {[%emt 0:00:35]} 42. Kg3 {[%emt 0:00:35]} Ng6 {[%emt 0:03:41]} 43. Kf3 {[%emt 0:01:04]} Kd7 {[%emt 0:02:39]} 44. Ba5 {[%emt 0:00:30]} Kd6 {[%emt 0:02:42]} 45. Bb6 {[%emt 0:00:24]} Kc6 {[%emt 0:00:25]} 46. Bd8 {[%emt 0:00:09]} Kc5 {[%emt 0:00:11]} 47. Ke3 {[%emt 0:00:22]} Nf4 {[%emt 0:00:28]} 48. Bc7 {[%emt 0:00:28]} Ng6 {[%emt 0:00:48]} 49. Bd8 {[%emt 0:00:05]} Kd6 {[%emt 0:00:48]} 50. Kf3 {[%emt 0:00:13]} Ke6 {[%emt 0:02:14]} 51. Bb6 {[%emt 0:01:02]} Nf8 {[%emt 0:00:51]} 52. Bc5 {[%emt 0:01:09]} Nd7 {[%emt 0:00:05]} 53. Bb4 {[%emt 0:00:09]} Nf6 {[%emt 0:01:16]} 54. Bd2 {[%emt 0:01:05]} Ng8 {[%emt 0:00:53]} 55. Bb4 {[%emt 0:00:06]} Ne7 {[%emt 0:00:36]} 56. Kg3 {[%emt 0:00:31]} Kf6 {[%emt 0:01:06]} 57. h4 {[%emt 0:00:45]} gxh4+ {[%emt 0:04:00]} 58. Kxh4 {[%emt 0:00:02]} Nc6 {[%emt 0:00:06]} 59. Bd2 {[%emt 0:00:56]} Kg6 {[%emt 0:00:05]} 60. Kg3 {[%emt 0:00:21]} Nd4 {[%emt 0:00:35]} 61. Kf2 {[%emt 0:00:18]} Ne6 {[%emt 0:00:09]} 62. Kf3 {[%emt 0:00:34]} Ng5+ {[%emt 0:00:24]} 63. Ke3 {[%emt 0:00:08]} Kf6 {[%emt 0:02:29]} 64. Bc1 {[%emt 0:00:49]} Ne6 {[%emt 0:00:37]} 65. Kf3 {[%emt 0:00:13]} Kg6 {[%emt 0:00:13]} 66. Bd2 {[%emt 0:00:08]} Nd4+ {[%emt 0:00:15]} 67. Kf2 {[%emt 0:00:07]} Nb5 {[%emt 0:00:48]} 68. Kf3 {[%emt 0:00:34]} Nd6 {[%emt 0:00:04]} 69. Bc1 {[%emt 0:01:29]} Nc4 {[%emt 0:00:07]} 70. Ke2 {[%emt 0:00:25]} Nb6 {[%emt 0:00:30]} 71. Kf3 {[%emt 0:00:30]} Na4 {[%emt 0:00:06]} 72. Be3 {[%emt 0:00:46]} Nc3 {[%emt 0:00:15]} 73. Bd2 {[%emt 0:00:18]} Nb5 {[%emt 0:00:02]} 74. Bc1 {[%emt 0:00:58]} Nd4+ {[%emt 0:00:14]} 75. Kf2 {[%emt 0:00:20]} h5 {[%emt 0:00:29]} 76. gxh5+ {[%emt 0:00:03]} Kxh5 {[%emt 0:00:12]} 77. Ke3 {[%emt 0:01:07]} Kg4 {[%emt 0:00:05]} 78. Bb2 {[%emt 0:00:21]} Nc6 {[%emt 0:00:08]} 79. Ba3 {[%emt 0:00:40]} Na5 {[%emt 0:00:05]} 80. Be7 {[%emt 0:00:30]} Nc4+ {[%emt 0:00:14]} 81. Kd3 {[%emt 0:00:10]} Nb2+ {[%emt 0:00:43]} 82. Ke3 {[%emt 0:00:24]} Nd1+ {[%emt 0:00:20]} 83. Ke2 {[%emt 0:00:24]} Nb2 {[%emt 0:00:53]} 84. Ke3 {[%emt 0:00:17]} Nc4+ {[%emt 0:00:10]} 85. Kd3 {[%emt 0:00:20]} Nb6 {[%emt 0:00:09]} 86. Ke3 {[%emt 0:00:21]} Nd7 {[%emt 0:00:05]} 87. Bd6 {[%emt 0:00:43]} Kg5 {[%emt 0:00:20]} 88. Be7+ {[%emt 0:00:23]} Kg6 {[%emt 0:00:26]} 89. Bd6 {[%emt 0:00:23]} Kf6 {[%emt 0:00:23]} 90. Bc7 {[%emt 0:00:22]} Nc5 {[%emt 0:01:19]} 91. Bd8+ {[%emt 0:00:53]} Ke6 {[%emt 0:00:08]} 92. Ba5 {[%emt 0:00:09]} Nb7 {[%emt 0:00:12]} 93. Bb4 {[%emt 0:00:19]} Nd8 {[%emt 0:00:07]} 94. Ba3 {[%emt 0:00:33]} Nc6 {[%emt 0:00:09]} 95. Bb2 {[%emt 0:01:04]} Kf6 {[%emt 0:00:14]} 96. Bc3 {[%emt 0:01:10]} Kg5 {[%emt 0:00:04]} 97. Kf3 {[%emt 0:00:13]} Kh4 {[%emt 0:00:47]} 98. Bb2 {[%emt 0:00:11]} Kg5 {[%emt 0:00:33]} 99. Bc3 {[%emt 0:00:10]} Kf6 {[%emt 0:00:03]} 100. Ke3 {[%emt 0:00:16]} Ne7 {[%emt 0:00:03]} 101. Kf3 {[%emt 0:01:02]} Ng6 {[%emt 0:00:11]} 102. Bb2 {[%emt 0:00:28]} Kg5 {[%emt 0:00:20]} 103. Kg3 {[%emt 0:00:22]} f6 {[%emt 0:00:25]} 104. Bc1+ {[%emt 0:00:37]} Kh5 {[%emt 0:00:04]} 105. Kf3 {[%emt 0:00:42]} Ne7 {[%emt 0:00:12]} 106. Kg3 {[%emt 0:00:44]} Nc6 {[%emt 0:00:04]} 107. Ba3 {[%emt 0:00:30]} Nd4 {[%emt 0:00:17]} 108. Be7 {[%emt 0:00:41]} f5 {[%emt 0:00:04]} 109. Bf6 {[%emt 0:00:39]} f4+ {[%emt 0:00:13]} 110. Kf2 {[%emt 0:00:05]} Nc6 {[%emt 0:00:05]} 111. Kf3 {[%emt 0:00:07]} Kg6 {[%emt 0:00:20]} 112. Bxe5 {[%emt 0:00:02]} Nxe5+ {[%emt 0:00:05]} 113. Kxf4 {[%emt 0:02:22]} 1/2-1/2

[Event "III Menorca Open-A 2024"]
[Site "Ciutadella Menorca"]
[Date "2024.04.06"]
[Round "8.20"]
[White "Pichot, Alan"]
[Black "Bilych, Olexiy"]
[Result "1-0"]
[ECO "C50"]
[WhiteElo "2644"]
[BlackElo "2451"]
[Annotator "TA"]
[PlyCount "103"]
[EventDate "2024.04.02"]
[EventType "swiss"]
[EventCountry "ESP"]
[SourceTitle "playchess.com"]
[Source "ChessBase"]
[SourceQuality "1"]
[TimeControl "5400+30"]

{[%evp 9,103,22,21,25,16,6,3,0,0,0,0,0,19,24,17,10,16,11,16,11,28,11,14,12,37,10,16,12,18,24,20,14,87,74,89,88,108,120,340,329,456,435,500,498,614,675,652,656,1718,400,462,476,492,464,480,463,429,195,189,158,181,8,196,198,203,180,189,149,445,464,488,454,845,835,1188,1150,1137,1146,1289,1296,1383,1304,1483,1286,1680,1661,29981,29981,29982,29982,29986,29987,29987,29988,29988,29989]} 1. e4 {[%emt 0:00:05]} e5 {[%emt 0:00:03]} 2. Nf3 {[%emt 0:00:07]} Nc6 {[%emt 0:00:04]} 3. Bc4 {[%emt 0:00:30]} Nf6 {[%emt 0:00:05]} 4. d3 {[%emt 0:00:12]} Bc5 {[%emt 0:00:11]} 5. O-O {[%emt 0:00:42]} O-O {[%emt 0:00:08]} 6. a4 {[%emt 0:01:20]} a5 {[%emt 0:00:10]} 7. h3 {[%emt 0:00:47]} h6 {[%emt 0:04:12]} 8. c3 {[%emt 0:02:06] The position is equal.} d6 {[%emt 0:00:11]} 9. Be3 {[%emt 0:00:34]} Bxe3 {[%emt 0:01:31]} 10. fxe3 {[%emt 0:00:08]} Be6 {[%emt 0:00:39]} 11. Bxe6 {[%emt 0:00:20]} fxe6 {[%emt 0:00:05]} 12. Nbd2 {[%emt 0:00:20]} Qe8 {[%emt 0:11:32]} 13. Qb3 {[%emt 0:03:06]} b6 {[%emt 0:00:20]} 14. Rf2 {[%emt 0:01:17]} Nb8 {[%emt 0:00:57]} 15. Raf1 {[%emt 0:02:29]} Nbd7 {[%emt 0:00:36]} 16. d4 {[%emt 0:00:32] Repels Nc5} Kh8 {[%emt 0:09:34]} 17. Qc4 {[%emt 0:27:24]} Rc8 {[%emt 0:05:13]} 18. dxe5 {[%emt 0:00:48]} Nxe5 {[%emt 0:05:58]} 19. Nxe5 {[%emt 0:00:19]} dxe5 {[%emt 0:00:03]} 20. Nf3 {[%emt 0:02:10]} Nd7 {[%emt 0:00:49]} (20... Qh5 $11 {remains equal.}) 21. b4 $16 {[%emt 0:01:26]} Qe7 {[%emt 0:03:07]} 22. Rd1 {[%emt 0:02:34]} c5 {[%emt 0:09:02]} 23. b5 {[%emt 0:07:10] White is much more active.} Rxf3 $2 {[%emt 0:01:12]} 24. gxf3 $18 {[%emt 0:01:30]} Nf6 {[%emt 0:00:19]} 25. Qd3 {[%emt 0:01:06]} Nh5 {[%emt 0:00:20]} 26. Rg2 {[%emt 0:01:35]} Qh4 {[%emt 0:00:30]} 27. Qd7 {[%emt 0:23:06][%csl LRc8,LRe6]} Rf8 {[%emt 0:00:07]} 28. Qxe6 {[%emt 0:01:27]} Rxf3 {[%emt 0:00:14][%cal Bf8f3,Bf3h3,Bh3h4,Bh4e4,Be4e3,Be3g3][%mdl 32]} 29. Qg4 {[%emt 0:04:11]} (29. Qxb6 Qxe4 30. Qd8+ (30. Qxc5 Kh7 $11) 30... Kh7) (29. Qc8+ $142 Kh7 30. Rd8 (30. Qg4 Rxh3 31. Qxh4 Rxh4 $11) 30... Qxd8 31. Qxd8) 29... Rxh3 {[%emt 0:09:00][%csl Gh4][%cal Rh3h1]} 30. Qxh4 {[%emt 0:01:37]} Rxh4 {[%emt 0:00:02][%mdl 4096] Endgame. KRR-KRN} 31. Rd6 {[%emt 0:00:13]} Rxe4 {[%emt 0:00:02]} 32. Rxb6 {[%emt 0:00:10]} Rxe3 {[%emt 0:00:33][%cal Oh5f4]} 33. Rb2 {[%emt 0:00:36]} (33. Rc6 $142) 33... Nf4 {[%emt 0:02:29]} 34. Rb1 {[%emt 0:09:17][%mdl 1024] Hoping for Rb8+. White has strong compensation.} e4 {[%emt 0:00:56][%cal Oe3h3] [#]} 35. Rb8+ $1 {[%emt 0:00:14]} Kh7 {[%emt 0:00:04][%cal Oe3f3] [#]} 36. b6 $1 {[%emt 0:00:17]} Rg3+ {[%emt 0:00:27]} 37. Kf2 {[%emt 0:01:53]} Rf3+ {[%emt 0:00:08]} 38. Ke1 {[%emt 0:00:23] Strongly threatening b7.} Ng2+ $2 {[%emt 0:09:18][%mdl 8192]} (38... e3 $16 39. Re8 Rh3) 39. Kd2 {[%emt 0:01:24] And now b7 would win.} Rf2+ {[%emt 0:05:07]} 40. Kc1 {[%emt 0:00:14] Threatens to win with b7.} Ne3 {[%emt 0:02:50]} (40... Nf4 $142 41. Rb5 Ne2+ 42. Kd2 (42. Kd1 Nxc3+ 43. Ke1 e3 $11) 42... Ng3+ 43. Kd1 e3 44. Rxc5 e2+ 45. Kd2 Rf1) 41. Rb5 {[%emt 0:01:13][%csl LRa5,LRc5]} Nc4 {[%emt 0:04:40]} 42. b7 {[%emt 0:00:11]} (42. Rxc5 Rf1+ 43. Kc2 Rf2+ 44. Kc1 (44. Kb3 Nd2+ 45. Kc2 Nc4+ 46. Kb1 Nd2+ 47. Kc2 Nc4+ $11) 44... Rf1+ 45. Kc2 Rf2+ 46. Kb3 Nd2+ 47. Kc2 Nc4+ $11) 42... Rf1+ {[%emt 0:01:17]} 43. Kc2 {[%emt 0:00:04]} Rf2+ {[%emt 0:00:06]} 44. Kd1 {[%emt 0:01:15]} Nb2+ {[%emt 0:00:13]} 45. Kc1 {[%emt 0:00:17]} Nd3+ {[%emt 0:00:09]} 46. Kb1 {[%emt 0:00:09]} Rf1+ {[%emt 0:05:10]} 47. Ka2 {[%emt 0:00:07]} c4 {[%emt 0:00:28]} 48. Re8 {[%emt 0:03:29] White mates.} ({Worse is} 48. Rxa5 Rf2+ 49. Kb1 (49. Ka3 Rf1 $11) 49... Rf1+ 50. Ka2 Rf2+ 51. Ka3 Rf1 52. Ka2 $11 (52. Rh8+ Kg6 $11)) 48... Nc1+ {[%emt 0:01:03]} 49. Ka1 {[%emt 0:00:05]} Nb3+ {[%emt 0:00:37]} 50. Kb2 {[%emt 0:00:14]} Rf2+ {[%emt 0:00:31]} 51. Ka3 {[%emt 0:00:06]} Na1 {[%emt 0:00:26]} 52. Rb2 {[%emt 0:00:35] Weighted Error Value: White=0.18 (very precise) /Black=0.51.  Loses game:     	---       	Black=3      Mistake:       	White=1     	Black=2      Inaccurate:     	White=1     	Black=2      OK:         	White=12    	Black=13     Best:        	White=6     	Black=2      Strong:       	White=2     	---} 1-0

[Event "III Menorca Open-A 2024"]
[Site "Ciutadella Menorca"]
[Date "2024.04.06"]
[Round "8.21"]
[White "Cuenca Jimenez, Jose Fernando"]
[Black "Mammadova, Gulnar"]
[Result "1-0"]
[ECO "D02"]
[WhiteElo "2500"]
[BlackElo "2352"]
[Annotator "TA"]
[PlyCount "91"]
[EventDate "2024.04.02"]
[EventType "swiss"]
[EventCountry "ESP"]
[SourceTitle "playchess.com"]
[Source "ChessBase"]
[SourceQuality "1"]
[TimeControl "5400+30"]

{[%evp 9,91,0,15,7,18,8,3,10,14,1,7,2,19,14,5,12,29,0,0,0,20,6,14,0,7,0,6,2,4,9,4,9,33,29,54,53,52,-53,58,78,75,59,78,89,98,87,124,87,138,138,141,147,144,149,201,107,225,87,94,89,139,89,81,44,83,78,78,82,83,83,245,241,249,211,247,242,251,268,244,241,4670,2927,1608,1452]} 1. d4 {[%emt 0:00:03]} Nf6 {[%emt 0:00:15]} 2. Bf4 {[%emt 0:00:08]} d5 {[%emt 0:00:21]} 3. e3 {[%emt 0:00:11]} e6 {[%emt 0:00:12]} 4. Nf3 {[%emt 0:00:07]} c5 {[%emt 0:00:15]} 5. Nbd2 {[%emt 0:00:47]} Qb6 {[%emt 0:00:41]} 6. Rb1 {[%emt 0:00:28]} Bd6 {[%emt 0:00:09]} 7. dxc5 {[%emt 0:00:21]} Qxc5 {[%emt 0:00:14]} 8. Be2 {[%emt 0:00:34] The position is equal.} O-O {[%emt 0:00:32]} 9. O-O {[%emt 0:01:20]} b6 {[%emt 0:00:53]} 10. b4 {[%emt 0:06:29]} Qc7 {[%emt 0:00:10]} 11. Bxd6 {[%emt 0:00:05]} Qxd6 {[%emt 0:00:06]} 12. c4 {[%emt 0:00:05]} a5 {[%emt 0:00:13]} 13. a3 {[%emt 0:06:16]} axb4 {[%emt 0:03:56]} 14. axb4 {[%emt 0:00:17]} Nbd7 {[%emt 0:02:47]} 15. Qb3 {[%emt 0:04:08]} Ba6 {[%emt 0:04:55]} 16. Rfd1 {[%emt 0:01:49]} Qe7 {[%emt 0:03:59]} 17. Bf1 {[%emt 0:09:30]} Bb7 {[%emt 0:05:10]} 18. Nd4 {[%emt 0:06:50]} Rfc8 {[%emt 0:05:20]} 19. Rdc1 {[%emt 0:08:54]} dxc4 {[%emt 0:02:54]} 20. Nxc4 {[%emt 0:06:14]} g6 {[%emt 0:08:32]} 21. f3 {[%emt 0:08:38][%cal Bf2f3,Bf3f4][%mdl 32]} e5 {[%emt 0:07:44][%cal Be6e5,Be5e4][%mdl 32]} 22. Nb5 {[%emt 0:01:05]} e4 {[%emt 0:04:19]} 23. Nbd6 {[%emt 0:05:05]} ({White has to play} 23. f4 $1 $14) 23... Rc7 {[%emt 0:03:27]} ({Black should play} 23... Rxc4 $1 $15 24. Bxc4 (24. Nxc4 exf3 25. gxf3 Bxf3 $17) 24... Qxd6 25. Bxf7+ Kf8) 24. Nxb7 $14 {[%emt 0:00:27]} Rxb7 {[%emt 0:00:04]} 25. f4 {[%emt 0:00:26]} Rba7 {[%emt 0:01:45]} 26. Rd1 {[%emt 0:01:58] Inhibits Nd5.} Rc7 {[%emt 0:08:51]} 27. Rd4 {[%emt 0:04:36]} Rb8 {[%emt 0:04:43]} 28. Rbd1 {[%emt 0:02:27]} Nf8 {[%emt 0:01:30]} (28... Ne8 $142) 29. Rd6 $16 {[%emt 0:02:56]} Rd7 {[%emt 0:03:36]} 30. Rxd7 {[%emt 0:03:46]} (30. Rxb6 $6 Rxb6 31. Nxb6 Rxd1 32. Qxd1 Qxb4 $11) 30... N8xd7 {[%emt 0:01:04]} 31. Nd6 {[%emt 0:00:05][%cal Od6f7] Threatens to win with Nxf7!} Kg7 {[%emt 0:01:50]} (31... b5 $16 32. Nxb5 (32. Bxb5 Nb6 $16) 32... Nb6) 32. Bc4 {[%emt 0:02:38]} (32. Qb2 $18) 32... Nf8 {[%emt 0:03:25]} (32... b5 $16 {was necessary.} 33. Bxb5 (33. Bxf7 Nf8 $14) 33... Nb6) 33. Nb5 {[%emt 0:00:35]} (33. Bxf7 $2 {perishes.} Rd8 $19) (33. Nxf7 $18 {Strongly threatening Qc3.} b5 34. Bd5) 33... Rb7 {[%emt 0:06:23]} 34. h3 {[%emt 0:01:47] White has more active pieces.} h5 {[%emt 0:02:09]} (34... Rd7 $142) 35. Nd4 {[%emt 0:01:35]} (35. Rd6 $142) 35... Rc7 {[%emt 0:00:51]} 36. Ra1 {[%emt 0:01:28]} Qd8 {[%emt 0:01:26]} 37. b5 {[%emt 0:02:34]} Qd6 {[%emt 0:01:01]} 38. Nc6 {[%emt 0:12:48]} Qc5 {[%emt 0:01:53]} 39. Rd1 {[%emt 0:00:00][%cal Ba1d1,Bd1d7,Bd7f7][%mdl 32]} Ne6 $2 {[%emt 0:03:33] [#] A mistake that costs the game.} 40. Bxe6 $18 {[%emt 0:00:00]} fxe6 {[%emt 0:00:05]} 41. Nd4 {[%emt 0:00:00][%cal Bc6d4,Bd4e6,Be6g5][%mdl 32]} Qc3 {[%emt 0:03:44]} 42. Nxe6+ {[%emt 0:00:00]} ({Weaker is} 42. Qxe6 Qxe3+ 43. Kh1 Rc1 44. Qe7+ Kg8 45. Qe6+ Kg7 46. Qe7+ Kg8 47. Qe6+ Kg7 $11) 42... Kh7 {[%emt 0:00:43]} 43. Ng5+ {[%emt 0:00:00]} Kg7 {[%emt 0:00:08]} 44. Rd7+ $1 {[%emt 0:00:00]} Kh6 $2 {[%emt 0:01:06] [#]} (44... Kh8 45. Qxc3 Rxc3) 45. Qxc3 {[%emt 0:00:00]} Rxc3 {[%emt 0:00:05]} 46. Rf7 {[%emt 0:00:00] Weighted Error Value: White=0.15 (very precise) /Black=0.27 (precise) .  Loses game:     	---       	Black=1      Mistake:       	White=4     	Black=6      Inaccurate:     	White=2     	Black=2      OK:         	White=15    	Black=9      Best:        	White=4     	Black=1      Strong:       	White=1     	---} 1-0

[Event "III Menorca Open-A 2024"]
[Site "Ciutadella Menorca"]
[Date "2024.04.06"]
[Round "8.22"]
[White "Bradbury, Neil H"]
[Black "Cramling Bellon, Anna"]
[Result "1-0"]
[ECO "E04"]
[WhiteElo "2197"]
[BlackElo "2115"]
[Annotator "RC"]
[PlyCount "83"]
[EventDate "2024.04.02"]
[EventType "swiss"]
[EventCountry "ESP"]
[SourceTitle "playchess.com"]
[Source "ChessBase"]
[SourceQuality "1"]
[TimeControl "5400+30"]

1. d4 {[%emt 0:00:03]} d5 {[%emt 0:00:17]} 2. c4 {[%emt 0:00:32]} e6 {[%emt 0:00:03]} 3. Nf3 {[%emt 0:00:09]} Nf6 {[%emt 0:00:13]} 4. g3 {[%emt 0:00:08]} dxc4 {[%emt 0:00:06]} 5. Bg2 {[%emt 0:02:36]} Bb4+ {[%emt 0:00:18]} 6. Bd2 {[%emt 0:00:43]} a5 {[%emt 0:00:09]} 7. O-O {[%emt 0:04:03]} O-O {[%emt 0:00:31]} 8. Nc3 {[%emt 0:07:12]} c6 {[%emt 0:07:27]} 9. Bg5 {[%emt 0:05:18]} b5 {[%emt 0:07:43]} 10. Ne5 {[%emt 0:05:09]} Ra6 {[%emt 0:04:39]} 11. a4 {[%emt 0:02:40]} Bd7 {[%emt 0:01:14]} 12. Ne4 {[%emt 0:12:34]} Be7 {[%emt 0:04:12]} 13. Nc5 {[%emt 0:09:04]} Bxc5 {[%emt 0:05:20]} 14. dxc5 {[%emt 0:00:02]} h6 {[%emt 0:02:15]} 15. Bxf6 {[%emt 0:05:13]} gxf6 {[%emt 0:00:09]} 16. Ng4 {[%emt 0:03:32]} f5 {[%emt 0:09:32]} 17. Ne5 {[%emt 0:02:35]} Qc7 {[%emt 0:09:15]} 18. Qd4 {[%emt 0:07:11]} f6 {[%emt 0:06:30]} 19. Ng6 {[%emt 0:01:12]} Rf7 {[%emt 0:00:12]} 20. f4 {[%emt 0:07:30]} Kh7 {[%emt 0:03:50]} 21. Nh4 {[%emt 0:00:09]} Ra7 {[%emt 0:04:08]} 22. e4 {[%emt 0:05:46]} Na6 {[%emt 0:16:37]} 23. exf5 {[%emt 0:01:13]} exf5 {[%emt 0:00:10]} 24. Bh3 {[%emt 0:00:23]} Nb4 {[%emt 0:00:25]} 25. Rae1 {[%emt 0:02:10]} Nc2 {[%emt 0:02:27]} 26. Qc3 {[%emt 0:01:26]} Nxe1 {[%emt 0:00:10]} 27. Rxe1 {[%emt 0:00:07]} Qd8 {[%emt 0:07:12]} 28. Qf3 {[%emt 0:07:56]} Re7 {[%emt 0:03:05]} 29. Rd1 {[%emt 0:00:04]} Qe8 {[%emt 0:00:30]} 30. Kf2 {[%emt 0:00:03]} Be6 {[%emt 0:02:12]} 31. axb5 {[%emt 0:04:05]} cxb5 {[%emt 0:02:52]} 32. c6 {[%emt 0:00:02]} Ra6 {[%emt 0:01:30]} 33. Rd6 {[%emt 0:00:16]} b4 {[%emt 0:00:53]} 34. Nxf5 {[%emt 0:02:40]} Bxf5 {[%emt 0:00:19]} 35. Bxf5+ {[%emt 0:00:01]} Kh8 {[%emt 0:00:31]} 36. Rxf6 {[%emt 0:00:03]} Rg7 {[%emt 0:01:02]} 37. Rxh6+ {[%emt 0:00:17]} Kg8 {[%emt 0:00:04]} 38. Qd5+ {[%emt 0:00:13]} Rf7 {[%emt 0:00:29]} 39. Be6 {[%emt 0:00:39]} Qf8 {[%emt 0:00:35]} 40. Bxf7+ {[%emt 0:00:14]} Qxf7 {[%emt 0:00:06]} 41. Rh8+ {[%emt 0:00:04]} Kxh8 {[%emt 0:00:51]} 42. Qxf7 {[%emt 0:00:05]} 1-0

[Event "III Menorca Open-A 2024"]
[Site "Ciutadella Menorca"]
[Date "2024.04.06"]
[Round "8.23"]
[White "Sprenger de la Iglesia, Yevgeni"]
[Black "Prado, Alexandra"]
[Result "1/2-1/2"]
[ECO "E92"]
[WhiteElo "1973"]
[BlackElo "1877"]
[Annotator "RC"]
[PlyCount "103"]
[EventDate "2024.04.02"]
[EventType "swiss"]
[EventCountry "ESP"]
[SourceTitle "playchess.com"]
[Source "ChessBase"]
[SourceQuality "1"]
[TimeControl "5400+30"]

1. d4 {[%emt 0:00:02]} Nf6 {[%emt 0:01:44]} 2. c4 {[%emt 0:00:08]} g6 {[%emt 0:00:12]} 3. Nc3 {[%emt 0:00:07]} Bg7 {[%emt 0:00:05]} 4. e4 {[%emt 0:00:06]} d6 {[%emt 0:00:04]} 5. Nf3 {[%emt 0:00:33]} O-O {[%emt 0:00:32]} 6. Be2 {[%emt 0:00:06]} e5 {[%emt 0:00:08]} 7. Be3 {[%emt 0:00:08]} exd4 {[%emt 0:00:04]} 8. Nxd4 {[%emt 0:00:07]} Re8 {[%emt 0:02:49]} 9. f3 {[%emt 0:00:47]} c6 {[%emt 0:01:14]} 10. Bf2 {[%emt 0:00:07]} d5 {[%emt 0:00:55]} 11. exd5 {[%emt 0:00:08]} cxd5 {[%emt 0:01:21]} 12. O-O {[%emt 0:00:06]} Nc6 {[%emt 0:01:01]} 13. c5 {[%emt 0:00:51]} a6 {[%emt 0:14:44]} 14. Qd2 {[%emt 0:00:34]} Ne5 {[%emt 0:08:36]} 15. Na4 {[%emt 0:07:45]} Bd7 {[%emt 0:03:58]} 16. Nb6 {[%emt 0:01:59]} Rb8 {[%emt 0:00:10]} 17. Nxd7 {[%emt 0:05:36]} Qxd7 {[%emt 0:00:36]} 18. Rac1 {[%emt 0:05:13]} h5 {[%emt 0:05:36]} 19. Rfd1 {[%emt 0:10:49]} Nc6 {[%emt 0:11:39]} 20. b4 {[%emt 0:12:37]} Kh7 {[%emt 0:00:24]} 21. Rb1 {[%emt 0:00:34]} Bh6 {[%emt 0:17:54]} 22. Qc2 {[%emt 0:03:01]} Nxd4 {[%emt 0:01:27]} 23. Bxd4 {[%emt 0:01:21]} Be3+ {[%emt 0:00:21]} 24. Kf1 {[%emt 0:08:11]} Bxd4 {[%emt 0:00:17]} 25. Rxd4 {[%emt 0:00:02]} Qc7 {[%emt 0:03:45]} 26. g3 {[%emt 0:01:28]} Re7 {[%emt 0:04:51]} 27. Re1 {[%emt 0:10:59]} Rbe8 {[%emt 0:00:38]} 28. Rdd1 {[%emt 0:01:18]} h4 {[%emt 0:02:48]} 29. f4 {[%emt 0:06:08]} Qd7 {[%emt 0:02:39]} 30. Bf3 {[%emt 0:01:05]} Qb5+ {[%emt 0:02:57]} 31. Kf2 {[%emt 0:00:54]} Rxe1 {[%emt 0:00:23]} 32. Rxe1 {[%emt 0:00:02]} Rxe1 {[%emt 0:00:11]} 33. Kxe1 {[%emt 0:00:03]} Qxb4+ {[%emt 0:00:09]} 34. Kf1 {[%emt 0:02:32]} Qa3 {[%emt 0:01:52]} 35. Qb3 {[%emt 0:01:12]} Qxc5 {[%emt 0:03:21]} 36. Qxb7 {[%emt 0:00:38]} Kg7 {[%emt 0:00:39]} 37. Qxa6 {[%emt 0:00:49]} h3 {[%emt 0:00:23]} 38. Qd3 {[%emt 0:03:30]} Qc1+ {[%emt 0:02:19]} 39. Kf2 {[%emt 0:00:23]} Qb2+ {[%emt 0:00:42]} 40. Qe2 {[%emt 0:00:18]} Qb6+ {[%emt 0:00:22]} 41. Ke1 {[%emt 0:03:02]} Qg1+ {[%emt 0:00:54]} 42. Kd2 {[%emt 0:00:01]} Ne4+ {[%emt 0:01:29]} 43. Bxe4 {[%emt 0:08:07]} dxe4 {[%emt 0:00:01]} 44. Kc3 {[%emt 0:02:15]} Qg2 {[%emt 0:03:38]} 45. Kd2 {[%emt 0:00:32]} Qg1 {[%emt 0:01:00]} 46. Kc3 {[%emt 0:00:16]} Qg2 {[%emt 0:00:18]} 47. Kd2 {[%emt 0:00:12]} Qg1 {[%emt 0:02:50]} 48. Kc3 {[%emt 0:07:48]} Qc5+ 49. Kb3 {[%emt 0:00:30]} Qd4 {[%emt 0:01:00]} 50. Qb2 {[%emt 0:00:30]} Qxb2+ {[%emt 0:00:30]} 51. Kxb2 {[%emt 0:00:30]} e3 {[%emt 0:00:30]} 52. Kc2 1/2-1/2